[Event "Titled Tuesday Blitz August 31 2021"]
[White "Gutenev, Alexander"]
[Black "Kovacsy, Barnabas"]
[WhiteFideId "4195540"]
[BlackFideId "769290"]
[WhiteElo "2432"]
[BlackElo "1938"]
[Result "1-0"]
[Round "02"]
[TimeControl "180+1"]
[Date "2021.08.31"]
[WhiteClock "0:00:23"]
[BlackClock "0:00:09"]

1. e4 {[%clk 0:03:00]}  c5 {[%clk 0:02:58]} 2. Nc3 {[%clk 0:03:00]}  Nc6 {[%clk 0:02:58]} 3. Bb5 {[%clk 0:02:59]}  Nd4 {[%clk 0:02:56]} 4. Nf3 {[%clk 0:02:59]}  e6 {[%clk 0:02:56]} 5. O-O {[%clk 0:02:59]}  a6 {[%clk 0:02:56]} 6. Bd3 {[%clk 0:02:58]}  b5 {[%clk 0:02:56]} 7. Re1 {[%clk 0:02:58]}  Bb7 {[%clk 0:02:56]} 8. Nxd4 {[%clk 0:02:51]}  cxd4 {[%clk 0:02:56]} 9. Ne2 {[%clk 0:02:52]}  e5 {[%clk 0:02:55]} 10. c3 {[%clk 0:02:51]}  dxc3 {[%clk 0:02:55]} 11. dxc3 {[%clk 0:02:50]}  Nf6 {[%clk 0:02:55]} 12. Ng3 {[%clk 0:02:49]}  g6 {[%clk 0:02:52]} 13. a4 {[%clk 0:02:40]}  bxa4 {[%clk 0:02:48]} 14. Rxa4 {[%clk 0:02:36]}  Bg7 {[%clk 0:02:47]} 15. Qb3 {[%clk 0:02:32]}  Bc6 {[%clk 0:02:45]} 16. Rxa6 {[%clk 0:02:31]}  Rxa6 {[%clk 0:02:44]} 17. Bxa6 {[%clk 0:02:32]}  O-O {[%clk 0:02:42]} 18. Bc4 {[%clk 0:02:32]}  Qa8 {[%clk 0:02:28]} 19. f3 {[%clk 0:02:31]}  d5 {[%clk 0:02:18]} 20. exd5 {[%clk 0:02:31]}  Bxd5 {[%clk 0:02:17]} 21. Ne4 {[%clk 0:01:57]}  Bxc4 {[%clk 0:01:53]} 22. Nxf6+ {[%clk 0:01:57]}  Bxf6 {[%clk 0:01:51]} 23. Qxc4 {[%clk 0:01:58]}  Rd8 {[%clk 0:01:36]} 24. h4 {[%clk 0:01:54]}  h5 {[%clk 0:01:30]} 25. Kh2 {[%clk 0:01:50]}  Qb7 {[%clk 0:01:16]} 26. Qe4 {[%clk 0:01:46]}  Qb3 {[%clk 0:01:13]} 27. Bg5 {[%clk 0:01:36]}  Bxg5 {[%clk 0:01:06]} 28. hxg5 {[%clk 0:01:37]}  Qxb2 {[%clk 0:00:56]} 29. Qxe5 {[%clk 0:01:35]}  Qf2 {[%clk 0:00:54]} 30. Qg3 {[%clk 0:01:31]}  Qd2 {[%clk 0:00:51]} 31. c4 {[%clk 0:01:28]}  Qc3 {[%clk 0:00:46]} 32. Re4 {[%clk 0:01:26]}  Rc8 {[%clk 0:00:41]} 33. Qf4 {[%clk 0:01:25]}  Qc2 {[%clk 0:00:31]} 34. Qf6 {[%clk 0:01:16]}  Qf2 {[%clk 0:00:30]} 35. Rf4 {[%clk 0:01:06]}  Qa7 {[%clk 0:00:26]} 36. Rd4 {[%clk 0:01:03]}  Qc7+ {[%clk 0:00:26]} 37. f4 {[%clk 0:01:02]}  Re8 {[%clk 0:00:21]} 38. Kh3 {[%clk 0:00:44]}  Re3+ {[%clk 0:00:21]} 39. g3 {[%clk 0:00:43]}  Re8 {[%clk 0:00:21]} 40. Qd6 {[%clk 0:00:43]}  Qb7 {[%clk 0:00:20]} 41. Qd5 {[%clk 0:00:42]}  Qb1 {[%clk 0:00:19]} 42. Rd1 {[%clk 0:00:41]}  Qc2 {[%clk 0:00:15]} 43. Ra1 {[%clk 0:00:34]}  Qe2 {[%clk 0:00:15]} 44. Rg1 {[%clk 0:00:28]}  Qg4+ {[%clk 0:00:15]} 45. Kh2 {[%clk 0:00:28]}  Qe2+ {[%clk 0:00:13]} 46. Rg2 {[%clk 0:00:28]}  Qe1 {[%clk 0:00:11]} 47. f5 {[%clk 0:00:28]}  gxf5 {[%clk 0:00:09]} 48. g6 {[%clk 0:00:28]}  Qe6 {[%clk 0:00:09]} 49. gxf7+ {[%clk 0:00:24]}  Kxf7 {[%clk 0:00:10]} 50. Qf3 {[%clk 0:00:22]}  Qe5 {[%clk 0:00:10]} 51. Rf2 {[%clk 0:00:20]}  h4 {[%clk 0:00:09]} 52. Qh5+ {[%clk 0:00:19]}  Ke6 {[%clk 0:00:08]} 53. Re2 {[%clk 0:00:17]}  hxg3+ {[%clk 0:00:08]} 54. Kg2 {[%clk 0:00:18]}  Kd6 {[%clk 0:00:08]} 55. Rxe5 {[%clk 0:00:18]}  Rxe5 {[%clk 0:00:09]} 56. Qg6+ {[%clk 0:00:18]}  Re6 {[%clk 0:00:09]} 57. Qxf5 {[%clk 0:00:19]}  Ke7 {[%clk 0:00:09]} 58. Kxg3 {[%clk 0:00:18]}  Rf6 {[%clk 0:00:09]} 59. Qe5+ {[%clk 0:00:19]}  Kf7 {[%clk 0:00:09]} 60. c5 {[%clk 0:00:19]}  Re6 {[%clk 0:00:09]} 61. Qf5+ {[%clk 0:00:19]}  Rf6 {[%clk 0:00:09]} 62. Qd7+ {[%clk 0:00:19]}  Kg8 {[%clk 0:00:10]} 63. c6 {[%clk 0:00:20]}  Rg6+ {[%clk 0:00:08]} 64. Kf4 {[%clk 0:00:20]}  Kh8 {[%clk 0:00:09]} 65. Kf5 {[%clk 0:00:20]}  Rh6 {[%clk 0:00:07]} 66. Kg5 {[%clk 0:00:20]}  Rh7 {[%clk 0:00:07]} 67. Qxh7+ {[%clk 0:00:20]}  Kxh7 {[%clk 0:00:07]} 68. c7 {[%clk 0:00:21]}  Kg7 {[%clk 0:00:08]} 69. c8=Q {[%clk 0:00:22]}  Kh7 {[%clk 0:00:09]} 70. Qd7+ {[%clk 0:00:22]}  Kg8 {[%clk 0:00:09]} 71. Kg6 {[%clk 0:00:23]}  Kh8 {[%clk 0:00:09]} 72. Qg7# {[%clk 0:00:23]} 1-0


[Site "https://www.chess.com"]

[Event "Titled Tuesday Blitz August 31 2021"]
[White "Hansen, Eric"]
[Black "Bobkov, Vadim"]
[WhiteFideId "2606771"]
[BlackFideId "34110876"]
[WhiteElo "2568"]
[BlackElo "2117"]
[Result "1-0"]
[Round "02"]
[TimeControl "180+1"]
[Date "2021.08.31"]
[WhiteClock "0:00:41"]
[BlackClock "0:00:02"]

1. e4 {[%clk 0:03:00]}  c5 {[%clk 0:02:59]} 2. Nf3 {[%clk 0:03:00]}  Nf6 {[%clk 0:03:00]} 3. e5 {[%clk 0:02:58]}  Nd5 {[%clk 0:03:00]} 4. d4 {[%clk 0:02:35]}  cxd4 {[%clk 0:03:01]} 5. Qxd4 {[%clk 0:02:35]}  e6 {[%clk 0:03:00]} 6. Qe4 {[%clk 0:02:33]}  f5 {[%clk 0:02:49]} 7. Qe2 {[%clk 0:02:27]}  b5 {[%clk 0:02:24]} 8. Qxb5 {[%clk 0:02:16]}  Ba6 {[%clk 0:02:24]} 9. Qa4 {[%clk 0:02:16]}  Bxf1 {[%clk 0:02:23]} 10. Kxf1 {[%clk 0:02:17]}  Nc6 {[%clk 0:02:22]} 11. g3 {[%clk 0:02:08]}  Bc5 {[%clk 0:01:24]} 12. Kg2 {[%clk 0:02:07]}  Qb6 {[%clk 0:01:22]} 13. Nbd2 {[%clk 0:01:47]}  a5 {[%clk 0:00:47]} 14. c3 {[%clk 0:01:24]}  O-O {[%clk 0:00:44]} 15. Nc4 {[%clk 0:01:21]}  Qa7 {[%clk 0:00:44]} 16. Rf1 {[%clk 0:01:18]}  Rfc8 {[%clk 0:00:36]} 17. Bd2 {[%clk 0:01:07]}  Qa6 {[%clk 0:00:32]} 18. Rad1 {[%clk 0:01:03]}  h6 {[%clk 0:00:25]} 19. h4 {[%clk 0:01:03]}  Rab8 {[%clk 0:00:21]} 20. Bc1 {[%clk 0:00:59]}  Qb5 {[%clk 0:00:12]} 21. Qxb5 {[%clk 0:00:59]}  Rxb5 {[%clk 0:00:13]} 22. a4 {[%clk 0:00:55]}  Rb7 {[%clk 0:00:10]} 23. Ne1 {[%clk 0:00:49]}  Ba7 {[%clk 0:00:08]} 24. Nd3 {[%clk 0:00:49]}  Rbb8 {[%clk 0:00:02]} 25. Nd6 {[%clk 0:00:49]}  Rc7 {[%clk 0:00:03]} 26. Nb5 {[%clk 0:00:49]}  Rcc8 {[%clk 0:00:03]} 27. c4 {[%clk 0:00:45]}  Nde7 {[%clk 0:00:01]} 28. b3 {[%clk 0:00:43]}  Bb6 {[%clk 0:00:01]} 29. Ba3 {[%clk 0:00:42]}  Kf7 {[%clk 0:00:01]} 30. Nd6+ {[%clk 0:00:42]}  Kg6 {[%clk 0:00:02]} 31. Nxc8 {[%clk 0:00:42]}  Rxc8 {[%clk 0:00:03]} 32. Bxe7 {[%clk 0:00:42]}  Nxe7 {[%clk 0:00:03]} 33. Nf4+ {[%clk 0:00:43]}  Kf7 {[%clk 0:00:03]} 34. Rxd7 {[%clk 0:00:44]}  g5 {[%clk 0:00:03]} 35. hxg5 {[%clk 0:00:44]}  hxg5 {[%clk 0:00:04]} 36. Nh3 {[%clk 0:00:44]}  Rg8 {[%clk 0:00:02]} 37. Rh1 {[%clk 0:00:41]}  f4 {[%clk 0:00:02]} 38. Nxg5+ {[%clk 0:00:40]}  Rxg5 {[%clk 0:00:02]} 39. Rh7+ {[%clk 0:00:41]} 1-0


[Site "https://www.chess.com"]

[Event "Titled Tuesday Blitz August 31 2021"]
[White "Ider, Borya"]
[Black "Priyanka Nutakki"]
[WhiteFideId "4901134"]
[BlackFideId "25049615"]
[WhiteElo "2512"]
[BlackElo "1916"]
[Result "1-0"]
[Round "02"]
[TimeControl "180+1"]
[Date "2021.08.31"]
[WhiteClock "0:01:16"]
[BlackClock "0:00:01"]

1. Nf3 {[%clk 0:02:53]}  d5 {[%clk 0:02:59]} 2. g3 {[%clk 0:02:53]}  Nf6 {[%clk 0:02:59]} 3. Bg2 {[%clk 0:02:53]}  Bg4 {[%clk 0:02:59]} 4. c4 {[%clk 0:02:52]}  e6 {[%clk 0:02:58]} 5. Ne5 {[%clk 0:02:51]}  Bh5 {[%clk 0:02:57]} 6. Qb3 {[%clk 0:02:51]}  b6 {[%clk 0:02:24]} 7. Qa4+ {[%clk 0:02:43]}  Nbd7 {[%clk 0:02:17]} 8. Nc3 {[%clk 0:02:41]}  Bd6 {[%clk 0:01:21]} 9. Nc6 {[%clk 0:02:39]}  Nc5 {[%clk 0:01:17]} 10. Nxd8+ {[%clk 0:02:07]}  Nxa4 {[%clk 0:01:17]} 11. Nxe6 {[%clk 0:01:57]}  fxe6 {[%clk 0:00:57]} 12. Nxa4 {[%clk 0:01:57]}  O-O-O {[%clk 0:00:49]} 13. cxd5 {[%clk 0:01:48]}  exd5 {[%clk 0:00:50]} 14. e3 {[%clk 0:01:48]}  d4 {[%clk 0:00:43]} 15. b3 {[%clk 0:01:36]}  b5 {[%clk 0:00:36]} 16. Nb2 {[%clk 0:01:33]}  dxe3 {[%clk 0:00:31]} 17. fxe3 {[%clk 0:01:33]}  Be5 {[%clk 0:00:22]} 18. O-O {[%clk 0:01:25]}  Bxb2 {[%clk 0:00:20]} 19. Bxb2 {[%clk 0:01:25]}  Rxd2 {[%clk 0:00:21]} 20. Bxf6 {[%clk 0:01:25]}  gxf6 {[%clk 0:00:20]} 21. Rxf6 {[%clk 0:01:26]}  Re8 {[%clk 0:00:19]} 22. Bc6 {[%clk 0:01:18]}  Red8 {[%clk 0:00:11]} 23. Bxb5 {[%clk 0:01:18]}  Rc2 {[%clk 0:00:08]} 24. Rf2 {[%clk 0:01:18]}  Rc3 {[%clk 0:00:08]} 25. Re1 {[%clk 0:01:17]}  Kb7 {[%clk 0:00:06]} 26. e4 {[%clk 0:01:17]}  a6 {[%clk 0:00:06]} 27. Bc4 {[%clk 0:01:16]}  Bg6 {[%clk 0:00:02]} 28. e5 {[%clk 0:01:17]}  Kb6 {[%clk 0:00:02]} 29. Rf6+ {[%clk 0:01:14]}  Kb7 {[%clk 0:00:02]} 30. Bxa6+ {[%clk 0:01:14]}  Ka7 {[%clk 0:00:03]} 31. Bc4 {[%clk 0:01:14]}  Rd2 {[%clk 0:00:03]} 32. Rf2 {[%clk 0:01:15]}  Rcc2 {[%clk 0:00:01]} 33. Rxd2 {[%clk 0:01:15]}  Rxd2 {[%clk 0:00:02]} 34. Re2 {[%clk 0:01:15]}  Rd1+ {[%clk 0:00:02]} 35. Kf2 {[%clk 0:01:16]}  Rd8 {[%clk 0:00:01]} 36. e6 {[%clk 0:01:16]} 1-0


[Site "https://www.chess.com"]

[Event "Titled Tuesday Blitz August 31 2021"]
[White "Indjic, Aleksandar"]
[Black "Mukhutdinov, Tigran"]
[WhiteFideId "911925"]
[BlackFideId "34108570"]
[WhiteElo "2643"]
[BlackElo "2154"]
[Result "1-0"]
[Round "02"]
[TimeControl "180+1"]
[Date "2021.08.31"]
[WhiteClock "0:00:16"]
[BlackClock "0:00:13"]

1. d4 {[%clk 0:03:00]}  Nf6 {[%clk 0:02:59]} 2. c4 {[%clk 0:02:59]}  g6 {[%clk 0:03:00]} 3. f3 {[%clk 0:02:57]}  d5 {[%clk 0:03:00]} 4. cxd5 {[%clk 0:02:56]}  Nxd5 {[%clk 0:03:01]} 5. e4 {[%clk 0:02:56]}  Nb6 {[%clk 0:03:01]} 6. Nc3 {[%clk 0:02:56]}  Bg7 {[%clk 0:03:02]} 7. Be3 {[%clk 0:02:55]}  O-O {[%clk 0:03:02]} 8. Qd2 {[%clk 0:02:55]}  e5 {[%clk 0:03:03]} 9. d5 {[%clk 0:02:52]}  c6 {[%clk 0:03:04]} 10. d6 {[%clk 0:02:49]}  Be6 {[%clk 0:02:59]} 11. h4 {[%clk 0:02:48]}  h5 {[%clk 0:02:27]} 12. O-O-O {[%clk 0:02:47]}  N8d7 {[%clk 0:02:23]} 13. Nh3 {[%clk 0:02:46]}  Nc4 {[%clk 0:02:18]} 14. Bxc4 {[%clk 0:02:44]}  Bxc4 {[%clk 0:02:19]} 15. b3 {[%clk 0:02:43]}  Be6 {[%clk 0:02:18]} 16. Ng5 {[%clk 0:02:43]}  Re8 {[%clk 0:02:13]} 17. g4 {[%clk 0:02:42]}  Nf6 {[%clk 0:02:08]} 18. gxh5 {[%clk 0:01:57]}  Nxh5 {[%clk 0:02:06]} 19. Rhg1 {[%clk 0:01:56]}  a5 {[%clk 0:01:56]} 20. Na4 {[%clk 0:01:55]}  Nf4 {[%clk 0:01:41]} 21. Kb1 {[%clk 0:01:39]}  b5 {[%clk 0:01:39]} 22. Nc5 {[%clk 0:01:38]}  a4 {[%clk 0:01:39]} 23. b4 {[%clk 0:01:37]}  Bc4 {[%clk 0:01:37]} 24. d7 {[%clk 0:01:35]}  Rf8 {[%clk 0:01:28]} 25. Nb7 {[%clk 0:00:54]}  Qc7 {[%clk 0:01:27]} 26. Nc5 {[%clk 0:00:46]}  Rad8 {[%clk 0:01:22]} 27. h5 {[%clk 0:00:45]}  Nxh5 {[%clk 0:01:21]} 28. Qh2 {[%clk 0:00:42]}  a3 {[%clk 0:00:41]} 29. Rd2 {[%clk 0:00:42]}  Rb8 {[%clk 0:00:32]} 30. Rg4 {[%clk 0:00:38]}  Qd8 {[%clk 0:00:32]} 31. Rh4 {[%clk 0:00:37]}  Qf6 {[%clk 0:00:31]} 32. Rg2 {[%clk 0:00:27]}  Rfd8 {[%clk 0:00:30]} 33. Rxh5 {[%clk 0:00:24]}  gxh5 {[%clk 0:00:30]} 34. Qxh5 {[%clk 0:00:24]}  Qg6 {[%clk 0:00:31]} 35. Qh2 {[%clk 0:00:17]}  Bf1 {[%clk 0:00:18]} 36. Rg1 {[%clk 0:00:16]}  Bc4 {[%clk 0:00:17]} 37. Nge6 {[%clk 0:00:16]}  Qxg1+ {[%clk 0:00:13]} 38. Qxg1 {[%clk 0:00:16]}  fxe6 {[%clk 0:00:13]} 39. Bh6 {[%clk 0:00:16]} 1-0


[Site "https://www.chess.com"]

[Event "Titled Tuesday Blitz August 31 2021"]
[White "Janaszak, Dawid"]
[Black "Urazayev, Arystanbek"]
[WhiteFideId "1119206"]
[BlackFideId "13709810"]
[WhiteElo "2332"]
[BlackElo "2321"]
[Result "0-1"]
[Round "02"]
[TimeControl "180+1"]
[Date "2021.08.31"]
[WhiteClock "0:00:06"]
[BlackClock "0:00:23"]

1. e4 {[%clk 0:03:00]}  c5 {[%clk 0:03:00]} 2. Nc3 {[%clk 0:03:00]}  e6 {[%clk 0:02:59]} 3. f4 {[%clk 0:02:58]}  Nc6 {[%clk 0:02:59]} 4. Nf3 {[%clk 0:02:56]}  d5 {[%clk 0:02:59]} 5. Bb5 {[%clk 0:02:57]}  Ne7 {[%clk 0:02:55]} 6. Ne5 {[%clk 0:02:48]}  d4 {[%clk 0:02:44]} 7. Ne2 {[%clk 0:02:35]}  Qb6 {[%clk 0:02:41]} 8. Nc4 {[%clk 0:02:25]}  Qc7 {[%clk 0:02:37]} 9. d3 {[%clk 0:02:12]}  a6 {[%clk 0:02:36]} 10. Bxc6+ {[%clk 0:02:12]}  Nxc6 {[%clk 0:02:37]} 11. O-O {[%clk 0:02:12]}  Be7 {[%clk 0:02:37]} 12. f5 {[%clk 0:02:08]}  e5 {[%clk 0:02:34]} 13. Ng3 {[%clk 0:02:05]}  b5 {[%clk 0:02:34]} 14. Nd2 {[%clk 0:02:04]}  Bg5 {[%clk 0:02:33]} 15. Nh5 {[%clk 0:01:55]}  f6 {[%clk 0:02:25]} 16. Nf3 {[%clk 0:01:45]}  Bxc1 {[%clk 0:02:23]} 17. Rxc1 {[%clk 0:01:46]}  Qf7 {[%clk 0:02:22]} 18. Nd2 {[%clk 0:01:41]}  Bb7 {[%clk 0:02:13]} 19. Nb3 {[%clk 0:01:37]}  Qe7 {[%clk 0:01:50]} 20. Qg4 {[%clk 0:01:36]}  O-O {[%clk 0:01:48]} 21. Nxc5 {[%clk 0:01:34]}  Bc8 {[%clk 0:01:48]} 22. Nb3 {[%clk 0:01:25]}  Kh8 {[%clk 0:01:43]} 23. Rf3 {[%clk 0:01:22]}  Bd7 {[%clk 0:01:39]} 24. Rh3 {[%clk 0:01:16]}  g5 {[%clk 0:01:37]} 25. Ng3 {[%clk 0:01:01]}  a5 {[%clk 0:01:27]} 26. Nd2 {[%clk 0:00:53]}  a4 {[%clk 0:01:26]} 27. Rh6 {[%clk 0:00:41]}  Qg7 {[%clk 0:01:21]} 28. Rh3 {[%clk 0:00:35]}  a3 {[%clk 0:01:19]} 29. b3 {[%clk 0:00:24]}  Nb4 {[%clk 0:01:18]} 30. Nh5 {[%clk 0:00:23]}  Qf7 {[%clk 0:01:18]} 31. Nf3 {[%clk 0:00:20]}  Nxa2 {[%clk 0:01:14]} 32. Ra1 {[%clk 0:00:20]}  Nc3 {[%clk 0:01:14]} 33. Nxf6 {[%clk 0:00:18]}  Qxf6 {[%clk 0:01:06]} 34. Qh5 {[%clk 0:00:15]}  h6 {[%clk 0:00:57]} 35. Nxe5 {[%clk 0:00:12]}  Ne2+ {[%clk 0:00:55]} 36. Kh1 {[%clk 0:00:10]}  Nf4 {[%clk 0:00:55]} 37. Qxh6+ {[%clk 0:00:09]}  Qxh6 {[%clk 0:00:55]} 38. Rxh6+ {[%clk 0:00:10]}  Kg7 {[%clk 0:00:55]} 39. Rd6 {[%clk 0:00:10]}  Be8 {[%clk 0:00:36]} 40. Rxd4 {[%clk 0:00:10]}  Bh5 {[%clk 0:00:34]} 41. g3 {[%clk 0:00:08]}  Ne2 {[%clk 0:00:32]} 42. Rd7+ {[%clk 0:00:08]}  Kf6 {[%clk 0:00:32]} 43. Rd5 {[%clk 0:00:08]}  Rfd8 {[%clk 0:00:25]} 44. g4 {[%clk 0:00:05]}  Rxd5 {[%clk 0:00:24]} 45. exd5 {[%clk 0:00:06]}  Kxe5 {[%clk 0:00:24]} 46. gxh5 {[%clk 0:00:06]}  b4 {[%clk 0:00:22]} 47. h6 {[%clk 0:00:03]}  Kxf5 {[%clk 0:00:20]} 48. Kg2 {[%clk 0:00:03]}  Nf4+ {[%clk 0:00:20]} 49. Kf3 {[%clk 0:00:04]}  Nxd5 {[%clk 0:00:21]} 50. d4 {[%clk 0:00:02]}  g4+ {[%clk 0:00:20]} 51. Ke2 {[%clk 0:00:03]}  Kg6 {[%clk 0:00:20]} 52. Kd3 {[%clk 0:00:04]}  Kxh6 {[%clk 0:00:21]} 53. Kc4 {[%clk 0:00:05]}  Ne3+ {[%clk 0:00:22]} 54. Kxb4 {[%clk 0:00:05]}  Nxc2+ {[%clk 0:00:22]} 55. Kc5 {[%clk 0:00:06]}  Nxa1 {[%clk 0:00:23]} 0-1


[Site "https://www.chess.com"]

[Event "Titled Tuesday Blitz August 31 2021"]
[White "Karthikeyan, Murali"]
[Black "Baches Garcia, Guillermo"]
[WhiteFideId "5074452"]
[BlackFideId "2209764"]
[WhiteElo "2564"]
[BlackElo "2516"]
[Result "1-0"]
[Round "02"]
[TimeControl "180+1"]
[Date "2021.08.31"]
[WhiteClock "0:00:56"]
[BlackClock "0:01:23"]

1. d4 {[%clk 0:03:00]}  Nf6 {[%clk 0:02:58]} 2. c4 {[%clk 0:02:58]}  e6 {[%clk 0:02:58]} 3. Nf3 {[%clk 0:02:55]}  d5 {[%clk 0:02:57]} 4. g3 {[%clk 0:02:56]}  Be7 {[%clk 0:02:51]} 5. Bg2 {[%clk 0:02:55]}  O-O {[%clk 0:02:52]} 6. Nc3 {[%clk 0:02:55]}  dxc4 {[%clk 0:02:48]} 7. Ne5 {[%clk 0:02:55]}  c5 {[%clk 0:02:42]} 8. dxc5 {[%clk 0:02:52]}  Qc7 {[%clk 0:02:35]} 9. Nxc4 {[%clk 0:02:17]}  Rd8 {[%clk 0:02:34]} 10. Qa4 {[%clk 0:01:55]}  Bd7 {[%clk 0:02:25]} 11. Qa5 {[%clk 0:01:55]}  Rc8 {[%clk 0:01:58]} 12. Qxc7 {[%clk 0:01:46]}  Rxc7 {[%clk 0:01:59]} 13. Bf4 {[%clk 0:01:47]}  Rxc5 {[%clk 0:01:51]} 14. Bxb7 {[%clk 0:01:01]}  Bc6 {[%clk 0:01:49]} 15. Bxa8 {[%clk 0:01:01]}  Bxa8 {[%clk 0:01:48]} 16. O-O {[%clk 0:01:01]}  Rxc4 {[%clk 0:01:48]} 17. Bxb8 {[%clk 0:01:01]}  Rb4 {[%clk 0:01:48]} 18. Bxa7 {[%clk 0:01:00]}  Rxb2 {[%clk 0:01:48]} 19. Rab1 {[%clk 0:01:00]}  Ba3 {[%clk 0:01:22]} 20. Rxb2 {[%clk 0:00:55]}  Bxb2 {[%clk 0:01:23]} 21. Rb1 {[%clk 0:00:56]} 1-0


[Site "https://www.chess.com"]

[Event "Titled Tuesday Blitz August 31 2021"]
[White "Karttunen, Mika"]
[Black "Vivas Zamora, Fabian Ernesto"]
[WhiteFideId "502081"]
[BlackFideId "3902480"]
[WhiteElo "2343"]
[BlackElo "1966"]
[Result "0-1"]
[Round "02"]
[TimeControl "180+1"]
[Date "2021.08.31"]
[WhiteClock "0:00:02"]
[BlackClock "0:00:02"]

1. d4 {[%clk 0:03:00]}  Nf6 {[%clk 0:02:54]} 2. c4 {[%clk 0:03:00]}  g6 {[%clk 0:02:53]} 3. Nc3 {[%clk 0:02:59]}  d5 {[%clk 0:02:54]} 4. Bg5 {[%clk 0:02:57]}  Bg7 {[%clk 0:02:53]} 5. Bxf6 {[%clk 0:02:51]}  Bxf6 {[%clk 0:02:54]} 6. cxd5 {[%clk 0:02:51]}  c6 {[%clk 0:02:52]} 7. e4 {[%clk 0:02:51]}  Bg7 {[%clk 0:02:46]} 8. h4 {[%clk 0:02:43]}  Qb6 {[%clk 0:02:27]} 9. Nge2 {[%clk 0:02:31]}  Qxb2 {[%clk 0:01:56]} 10. Rb1 {[%clk 0:02:21]}  Qa3 {[%clk 0:01:56]} 11. Rb3 {[%clk 0:02:21]}  Qa5 {[%clk 0:01:54]} 12. h5 {[%clk 0:02:13]}  cxd5 {[%clk 0:01:54]} 13. h6 {[%clk 0:01:52]}  Bf8 {[%clk 0:01:52]} 14. exd5 {[%clk 0:01:45]}  e6 {[%clk 0:01:40]} 15. Qb1 {[%clk 0:01:01]}  exd5 {[%clk 0:01:04]} 16. Rxb7 {[%clk 0:01:01]}  Bxb7 {[%clk 0:00:30]} 17. Qxb7 {[%clk 0:01:00]}  Bb4 {[%clk 0:00:31]} 18. Rh3 {[%clk 0:00:42]}  O-O {[%clk 0:00:20]} 19. Qxa8 {[%clk 0:00:42]}  Rc8 {[%clk 0:00:15]} 20. f4 {[%clk 0:00:10]}  Bxc3+ {[%clk 0:00:08]} 21. Rxc3 {[%clk 0:00:08]}  Rxc3 {[%clk 0:00:09]} 22. Nxc3 {[%clk 0:00:09]}  Qxc3+ {[%clk 0:00:09]} 23. Kf2 {[%clk 0:00:09]}  Qxd4+ {[%clk 0:00:09]} 24. Kf3 {[%clk 0:00:08]}  Qe4+ {[%clk 0:00:06]} 25. Kg3 {[%clk 0:00:08]}  Qe3+ {[%clk 0:00:07]} 26. Kg4 {[%clk 0:00:08]}  f5+ {[%clk 0:00:07]} 27. Kh4 {[%clk 0:00:05]}  Qxf4+ {[%clk 0:00:06]} 28. Kh3 {[%clk 0:00:06]}  Qxh6+ {[%clk 0:00:06]} 29. Kg3 {[%clk 0:00:06]}  Qe3+ {[%clk 0:00:05]} 30. Kh2 {[%clk 0:00:07]}  Qf4+ {[%clk 0:00:06]} 31. Kg1 {[%clk 0:00:07]}  Qe3+ {[%clk 0:00:05]} 32. Kh2 {[%clk 0:00:07]}  Qe5+ {[%clk 0:00:05]} 33. g3 {[%clk 0:00:07]}  Qb2+ {[%clk 0:00:05]} 34. Bg2 {[%clk 0:00:08]}  Kg7 {[%clk 0:00:04]} 35. Qxa7+ {[%clk 0:00:07]}  Kh6 {[%clk 0:00:03]} 36. Qe3+ {[%clk 0:00:07]}  Kg7 {[%clk 0:00:03]} 37. a4 {[%clk 0:00:06]}  Nc6 {[%clk 0:00:03]} 38. Qd3 {[%clk 0:00:04]}  Ne5 {[%clk 0:00:03]} 39. Qxd5 {[%clk 0:00:04]}  Ng4+ {[%clk 0:00:03]} 40. Kh3 {[%clk 0:00:04]}  Qf6 {[%clk 0:00:02]} 41. Qb7+ {[%clk 0:00:03]}  Kh6 {[%clk 0:00:02]} 42. Qc6 {[%clk 0:00:02]}  Qg5 {[%clk 0:00:02]} 0-1


[Site "https://www.chess.com"]